[Event "Turkish Championship 2023"]
[Site "Kemer Antalya"]
[Date "2023.12.10"]
[Round "9"]
[White "Tuncer, Ufuk"]
[Black "Yilmazyerli, Mert"]
[Result "0-1"]
[ECO "C54"]
[WhiteElo "2360"]
[BlackElo "2524"]
[Annotator "RC"]
[PlyCount "68"]
[EventDate "2023.12.01"]
[EventType "tourn"]
[EventCountry "TUR"]
[SourceTitle "playchess.com"]
[Source "ChessBase"]
[SourceQuality "1"]
[TimeControl "40/5400+30:1800+30"]

1. e4 {[%emt 0:04:00]} e5 {[%emt 0:01:00]} 2. Nf3 {[%emt 0:00:30]} Nc6 {[%emt 0:00:30]} 3. Bc4 {[%emt 0:00:30]} Bc5 {[%emt 0:00:30]} 4. d3 {[%emt 0:00:00]} Nf6 {[%emt 0:00:00]} 5. Bg5 {[%emt 0:00:00]} h6 {[%emt 0:00:00]} 6. Bh4 {[%emt 0:00:00]} d6 {[%emt 0:00:30]} 7. c3 {[%emt 0:00:00]} g5 {[%emt 0:00:00]} 8. Bg3 {[%emt 0:00:00]} Qe7 {[%emt 0:00:00]} 9. a4 {[%emt 0:00:00]} a5 {[%emt 0:00:30]} 10. Nbd2 {[%emt 0:00:30]} Nh5 {[%emt 0:00:30]} 11. h3 {[%emt 0:16:30]} Nf4 {[%emt 0:13:30]} 12. Bxf4 {[%emt 0:00:00]} gxf4 {[%emt 0:00:00]} 13. Qb3 {[%emt 0:05:00]} Rg8 {[%emt 0:07:00]} 14. Rh2 {[%emt 0:00:30]} Kf8 {[%emt 0:06:30]} 15. Ke2 {[%emt 0:00:30]} Ba7 {[%emt 0:04:30]} 16. Rf1 {[%emt 0:03:30]} Nd8 {[%emt 0:00:30]} 17. Kd1 {[%emt 0:36:30]} Ne6 {[%emt 0:02:30]} 18. Kc1 {[%emt 0:01:30]} Nc5 {[%emt 0:04:30]} 19. Qc2 {[%emt 0:02:30]} Bd7 {[%emt 0:01:30]} 20. b3 {[%emt 0:03:30]} Ne6 {[%emt 0:00:30]} 21. Kb1 {[%emt 0:02:30]} c6 {[%emt 0:03:30]} 22. g3 {[%emt 0:03:30]} b5 {[%emt 0:13:30]} 23. axb5 {[%emt 0:01:05]} cxb5 {[%emt 0:03:30]} 24. Bxe6 {[%emt 0:00:05]} Bxe6 {[%emt 0:01:30]} 25. gxf4 {[%emt 0:00:30]} exf4 {[%emt 0:00:00]} 26. d4 {[%emt 0:00:20]} Rc8 {[%emt 0:01:00]} 27. Qd3 {[%emt 0:06:32]} d5 {[%emt 0:14:30]} 28. exd5 {[%emt 0:06:48]} Bxd5 {[%emt 0:00:30]} 29. Re1 {[%emt 0:00:02]} Qc7 {[%emt 0:00:00]} 30. Qf5 {[%emt 0:03:25]} Bxf3 {[%emt 0:03:00]} 31. Nxf3 {[%emt 0:00:10]} Qxc3 {[%emt 0:00:00]} 32. Qd5 {[%emt 0:02:04]} Rg6 {[%emt 0:06:15]} 33. Rhh1 {[%emt 0:02:06]} Qd3+ {[%emt 0:01:09]} 34. Ka1 {[%emt 0:01:31]} Rc2 {[%emt 0:00:06]} 0-1

[Event "Turkish Championship 2023"]
[Site "Kemer Antalya"]
[Date "2023.12.10"]
[Round "9"]
[White "Gunduz, Umut Erdem"]
[Black "Bicer, Atakan Mert"]
[Result "0-1"]
[ECO "B19"]
[WhiteElo "2318"]
[BlackElo "2318"]
[Annotator "RC"]
[PlyCount "74"]
[EventDate "2023.12.01"]
[EventType "tourn"]
[EventCountry "TUR"]
[SourceTitle "playchess.com"]
[Source "ChessBase"]
[SourceQuality "1"]
[TimeControl "40/5400+30:1800+30"]

1. e4 {[%emt 0:01:00]} c6 {[%emt 0:01:00]} 2. d4 {[%emt 0:00:30]} d5 {[%emt 0:00:30]} 3. Nd2 {[%emt 0:00:30]} dxe4 {[%emt 0:00:00]} 4. Nxe4 {[%emt 0:00:00]} Bf5 {[%emt 0:00:00]} 5. Ng3 {[%emt 0:00:00]} Bg6 {[%emt 0:00:30]} 6. h4 {[%emt 0:00:00]} h6 {[%emt 0:00:00]} 7. Nf3 {[%emt 0:00:00]} e6 {[%emt 0:00:00]} 8. Ne5 {[%emt 0:04:30]} Bh7 {[%emt 0:00:00]} 9. Qh5 {[%emt 0:02:30]} Qc7 {[%emt 0:08:00]} 10. Bc4 {[%emt 0:04:30]} Nf6 {[%emt 0:00:30]} 11. Qe2 {[%emt 0:01:30]} Bd6 {[%emt 0:04:30]} 12. Bf4 {[%emt 0:07:30]} O-O {[%emt 0:09:30]} 13. O-O-O {[%emt 0:01:30]} Nbd7 {[%emt 0:00:00]} 14. Nh5 {[%emt 0:09:30]} Nxh5 {[%emt 0:02:00]} 15. Qxh5 {[%emt 0:00:00]} Nf6 {[%emt 0:01:30]} 16. Qe2 {[%emt 0:04:00]} Nd5 {[%emt 0:13:30]} 17. Bh2 {[%emt 0:02:30]} Rfe8 {[%emt 0:01:30]} 18. g4 {[%emt 0:17:30]} f6 {[%emt 0:15:30]} 19. Nf3 {[%emt 0:00:30]} Bxh2 {[%emt 0:00:30]} 20. Nxh2 {[%emt 0:00:30]} c5 {[%emt 0:05:30]} 21. Kb1 {[%emt 0:11:30]} Nb4 {[%emt 0:05:30]} 22. Rd2 {[%emt 0:04:30]} cxd4 {[%emt 0:01:30]} 23. Bb3 {[%emt 0:00:30]} Rad8 {[%emt 0:02:30]} 24. Ka1 {[%emt 0:03:30]} Qf4 {[%emt 0:07:30]} 25. g5 {[%emt 0:02:30]} Bxc2 {[%emt 0:08:52]} 26. Rxc2 {[%emt 0:01:30]} d3 {[%emt 0:00:25]} 27. Rc4 {[%emt 0:01:49]} Qxc4 {[%emt 0:01:38]} 28. Qd2 {[%emt 0:00:28]} Nc2+ {[%emt 0:01:37]} 29. Kb1 {[%emt 0:00:13]} Qxh4 {[%emt 0:00:09]} 30. gxf6 {[%emt 0:00:43]} Nd4 {[%emt 0:01:27]} 31. Bd1 {[%emt 0:00:43]} Ne2 {[%emt 0:00:35]} 32. Bb3 {[%emt 0:01:52]} Qf4 {[%emt 0:00:34]} 33. Qa5 {[%emt 0:02:04]} d2 {[%emt 0:00:31]} 34. Bxe6+ {[%emt 0:00:02]} Kh8 {[%emt 0:01:46]} 35. fxg7+ {[%emt 0:01:00]} Kxg7 {[%emt 0:00:06]} 36. Rd1 {[%emt 0:00:00]} Qe4+ {[%emt 0:00:09]} 37. Ka1 {[%emt 0:00:02]} Qxe6 {[%emt 0:00:18]} 0-1

[Event "Turkish Championship 2023"]
[Site "Kemer Antalya"]
[Date "2023.12.10"]
[Round "9"]
[White "Metin, Enis"]
[Black "Eren, Ataberk"]
[Result "0-1"]
[ECO "C13"]
[WhiteElo "2031"]
[BlackElo "2429"]
[Annotator "RC"]
[PlyCount "98"]
[EventDate "2023.12.01"]
[EventType "tourn"]
[EventCountry "TUR"]
[SourceTitle "playchess.com"]
[Source "ChessBase"]
[SourceQuality "1"]
[TimeControl "40/5400+30:1800+30"]

1. e4 {[%emt 0:01:00]} e6 {[%emt 0:01:00]} 2. d4 {[%emt 0:00:30]} d5 {[%emt 0:00:30]} 3. Nc3 {[%emt 0:00:30]} Nf6 {[%emt 0:00:30]} 4. Bg5 {[%emt 0:00:00]} dxe4 {[%emt 0:00:00]} 5. Nxe4 {[%emt 0:00:00]} Be7 {[%emt 0:00:00]} 6. Nxf6+ {[%emt 0:00:00]} Bxf6 {[%emt 0:00:30]} 7. Bxf6 {[%emt 0:00:00]} Qxf6 {[%emt 0:00:00]} 8. Nf3 {[%emt 0:00:00]} O-O {[%emt 0:00:00]} 9. Qd3 {[%emt 0:00:00]} c5 {[%emt 0:00:30]} 10. O-O-O {[%emt 0:00:00]} Rd8 {[%emt 0:01:30]} 11. Qe4 {[%emt 0:00:00]} cxd4 {[%emt 0:01:30]} 12. Bd3 {[%emt 0:05:30]} g6 {[%emt 0:17:30]} 13. g4 {[%emt 0:12:30]} Nd7 {[%emt 0:02:30]} 14. g5 {[%emt 0:02:30]} Qf5 {[%emt 0:10:30]} 15. Qxf5 {[%emt 0:00:30]} gxf5 {[%emt 0:04:30]} 16. Nxd4 {[%emt 0:08:30]} Nc5 {[%emt 0:01:30]} 17. Nf3 {[%emt 0:11:30]} b6 {[%emt 0:12:30]} 18. Ne5 {[%emt 0:00:30]} Bb7 {[%emt 0:00:00]} 19. Rhe1 {[%emt 0:00:30]} Nd7 {[%emt 0:07:00]} 20. Ba6 {[%emt 0:14:30]} Nxe5 {[%emt 0:01:30]} 21. Bxb7 {[%emt 0:00:30]} Rxd1+ {[%emt 0:00:30]} 22. Rxd1 {[%emt 0:00:30]} Rb8 {[%emt 0:00:30]} 23. Ba6 {[%emt 0:03:30]} Re8 {[%emt 0:04:30]} 24. a4 {[%emt 0:14:30]} Re7 {[%emt 0:00:30]} 25. b4 {[%emt 0:01:30]} Kg7 {[%emt 0:00:30]} 26. Kb2 {[%emt 0:00:30]} Nf3 {[%emt 0:01:30]} 27. c4 {[%emt 0:08:30]} Nxg5 {[%emt 0:00:30]} 28. Bb5 {[%emt 0:00:13]} Rc7 {[%emt 0:05:30]} 29. Rd7 {[%emt 0:01:18]} Rxd7 {[%emt 0:00:30]} 30. Bxd7 {[%emt 0:00:01]} Kf6 {[%emt 0:00:30]} 31. c5 {[%emt 0:05:18]} bxc5 {[%emt 0:02:30]} 32. b5 {[%emt 0:00:06]} Ke7 {[%emt 0:00:00]} 33. Bc6 {[%emt 0:00:03]} Kd6 {[%emt 0:01:00]} 34. Be8 {[%emt 0:00:25]} f6 {[%emt 0:00:30]} 35. a5 {[%emt 0:00:05]} Kc7 {[%emt 0:00:30]} 36. f4 {[%emt 0:03:28]} Ne4 {[%emt 0:01:30]} 37. b6+ {[%emt 0:00:17]} axb6 {[%emt 0:02:30]} 38. axb6+ {[%emt 0:00:04]} Kxb6 {[%emt 0:01:30]} 39. Bd7 {[%emt 0:00:04]} Nf2 {[%emt 0:02:55]} 40. Kc2 {[%emt 0:00:00]} Nh3 {[%emt 0:00:00]} 41. Bxe6 {[%emt 0:04:38]} Nxf4 {[%emt 0:01:35]} 42. Bxf5 {[%emt 0:00:00]} h6 {[%emt 0:00:00]} 43. Kd2 {[%emt 0:00:00]} Nd5 {[%emt 0:01:00]} 44. Ke2 {[%emt 0:01:30]} c4 {[%emt 0:03:30]} 45. Kf3 {[%emt 0:00:30]} Kc5 {[%emt 0:00:00]} 46. Bb1 {[%emt 0:01:30]} Kd4 {[%emt 0:00:00]} 47. Kg4 {[%emt 0:00:00]} Ke5 {[%emt 0:01:30]} 48. Kh5 {[%emt 0:00:00]} f5 {[%emt 0:00:30]} 49. Kxh6 {[%emt 0:00:30]} f4 {[%emt 0:00:00]} 0-1